[Event "January 9 Early 2024"]
[Site "https://www.chess.com"]
[Date "2024.01.11"]
[Round "10"]
[White "Mrithyunjay Mahadevan"]
[Black "Espinoza Villanueva, Rodrigo"]
[Result "1-0"]
[Board "63"]
[TimeControl "180+1"]
[WhiteFideId "45003521"]
[BlackFideId "5140188"]
[WhiteElo "2494"]
[BlackElo "2580"]
[WhiteTeam "IND"]
[BlackTeam "MEX"]
[WhiteClock "0:00:51"]
[BlackClock "0:00:42"]

1. e4 {[%clk 0:03:00]}  c5 {[%clk 0:02:56]} 2. Nf3 {[%clk 0:03:00]}  e6 {[%clk 0:02:53]} 3. g3 {[%clk 0:03:00]}  d5 {[%clk 0:02:51]} 4. exd5 {[%clk 0:02:58]}  exd5 {[%clk 0:02:52]} 5. d4 {[%clk 0:02:58]}  Nc6 {[%clk 0:02:49]} 6. Bg2 {[%clk 0:02:56]}  Nf6 {[%clk 0:02:50]} 7. O-O {[%clk 0:02:56]}  Ke7 {[%clk 0:02:48]} 8. dxc5 {[%clk 0:02:52]}  Ke8 {[%clk 0:02:44]} 9. Re1+ {[%clk 0:02:46]}  Be7 {[%clk 0:02:42]} 10. Nd4 {[%clk 0:02:33]}  Bd7 {[%clk 0:02:38]} 11. Nxc6 {[%clk 0:02:31]}  Bxc6 {[%clk 0:02:39]} 12. b4 {[%clk 0:02:31]}  Kf8 {[%clk 0:02:37]} 13. Bb2 {[%clk 0:02:29]}  h5 {[%clk 0:02:35]} 14. Nc3 {[%clk 0:02:27]}  h4 {[%clk 0:02:31]} 15. Ne2 {[%clk 0:02:25]}  hxg3 {[%clk 0:02:29]} 16. hxg3 {[%clk 0:02:24]}  a5 {[%clk 0:02:27]} 17. a3 {[%clk 0:02:23]}  Rc8 {[%clk 0:02:21]} 18. Nd4 {[%clk 0:02:22]}  Bd7 {[%clk 0:02:19]} 19. c3 {[%clk 0:02:13]}  Bh3 {[%clk 0:02:19]} 20. Qf3 {[%clk 0:02:10]}  Qd7 {[%clk 0:02:17]} 21. Bxh3 {[%clk 0:01:53]}  Qxh3 {[%clk 0:02:18]} 22. Qg2 {[%clk 0:01:53]}  Qh5 {[%clk 0:02:11]} 23. f3 {[%clk 0:01:52]}  g6 {[%clk 0:01:56]} 24. Kf2 {[%clk 0:01:49]}  Qh2 {[%clk 0:01:52]} 25. Rh1 {[%clk 0:01:42]}  Qxh1 {[%clk 0:01:45]} 26. Rxh1 {[%clk 0:01:40]}  Rxh1 {[%clk 0:01:44]} 27. Qxh1 {[%clk 0:01:39]}  Kg7 {[%clk 0:01:37]} 28. g4 {[%clk 0:01:37]}  Kg8 {[%clk 0:01:33]} 29. g5 {[%clk 0:01:36]}  Nh5 {[%clk 0:01:32]} 30. Qh4 {[%clk 0:01:19]}  Bf8 {[%clk 0:01:28]} 31. f4 {[%clk 0:01:17]}  Bg7 {[%clk 0:01:24]} 32. Nf5 {[%clk 0:01:17]}  Bf8 {[%clk 0:01:19]} 33. Nh6+ {[%clk 0:01:14]}  Bxh6 {[%clk 0:01:16]} 34. gxh6 {[%clk 0:01:15]}  Re8 {[%clk 0:01:17]} 35. f5 {[%clk 0:01:12]}  Kh7 {[%clk 0:01:16]} 36. fxg6+ {[%clk 0:01:12]}  fxg6 {[%clk 0:01:17]} 37. Qg5 {[%clk 0:01:06]}  Rf8+ {[%clk 0:01:15]} 38. Ke3 {[%clk 0:01:05]}  Rf7 {[%clk 0:01:13]} 39. c4 {[%clk 0:01:02]}  dxc4 {[%clk 0:01:11]} 40. bxa5 {[%clk 0:01:00]}  Rf5 {[%clk 0:00:55]} 41. Qe7+ {[%clk 0:00:59]}  Kxh6 {[%clk 0:00:54]} 42. Qxb7 {[%clk 0:00:54]}  Rxc5 {[%clk 0:00:50]} 43. a6 {[%clk 0:00:54]}  c3 {[%clk 0:00:48]} 44. Bc1 {[%clk 0:00:54]}  Ng3 {[%clk 0:00:42]} 45. Kd4+ {[%clk 0:00:51]} 1-0

[Event "January 9 Early 2024"]
[Site "https://www.chess.com"]
[Date "2024.01.11"]
[Round "10"]
[White "Castellano, Christopher"]
[Black "Stojanovski, Sandi"]
[Result "1-0"]
[Board "66"]
[TimeControl "180+1"]
[WhiteFideId "5203651"]
[BlackFideId "1403249"]
[WhiteElo "2458"]
[BlackElo "2544"]
[WhiteTeam "PHI"]
[BlackTeam "DEN"]
[WhiteClock "0:01:27"]
[BlackClock "0:00:02"]

1. d4 {[%clk 0:02:56]}  Nf6 {[%clk 0:02:59]} 2. Bf4 {[%clk 0:02:56]}  e6 {[%clk 0:02:59]} 3. e3 {[%clk 0:02:56]}  d5 {[%clk 0:02:59]} 4. Nd2 {[%clk 0:02:53]}  Bd6 {[%clk 0:02:56]} 5. Bg3 {[%clk 0:02:52]}  O-O {[%clk 0:02:54]} 6. Ngf3 {[%clk 0:02:53]}  c5 {[%clk 0:02:54]} 7. c3 {[%clk 0:02:53]}  b6 {[%clk 0:02:26]} 8. Bd3 {[%clk 0:02:53]}  Ba6 {[%clk 0:02:22]} 9. Bxa6 {[%clk 0:02:49]}  Nxa6 {[%clk 0:02:21]} 10. Qe2 {[%clk 0:02:50]}  Nb8 {[%clk 0:02:09]} 11. Rd1 {[%clk 0:02:50]}  Qc7 {[%clk 0:02:06]} 12. e4 {[%clk 0:02:48]}  dxe4 {[%clk 0:01:50]} 13. Nxe4 {[%clk 0:02:47]}  Nxe4 {[%clk 0:01:14]} 14. Qxe4 {[%clk 0:02:45]}  Nc6 {[%clk 0:01:13]} 15. dxc5 {[%clk 0:02:42]}  Bxg3 {[%clk 0:01:12]} 16. hxg3 {[%clk 0:02:41]}  h6 {[%clk 0:01:11]} 17. cxb6 {[%clk 0:02:35]}  axb6 {[%clk 0:01:10]} 18. a3 {[%clk 0:02:35]}  b5 {[%clk 0:00:49]} 19. O-O {[%clk 0:02:35]}  Ra4 {[%clk 0:00:47]} 20. Qe3 {[%clk 0:02:26]}  Rc4 {[%clk 0:00:34]} 21. Nd4 {[%clk 0:02:22]}  Nxd4 {[%clk 0:00:30]} 22. Rxd4 {[%clk 0:02:21]}  Rxd4 {[%clk 0:00:23]} 23. Qxd4 {[%clk 0:02:20]}  Qc4 {[%clk 0:00:24]} 24. Rd1 {[%clk 0:02:18]}  g6 {[%clk 0:00:23]} 25. b4 {[%clk 0:02:03]}  Rc8 {[%clk 0:00:21]} 26. Qxc4 {[%clk 0:02:02]}  Rxc4 {[%clk 0:00:20]} 27. Rd3 {[%clk 0:02:02]}  e5 {[%clk 0:00:19]} 28. f3 {[%clk 0:02:01]}  f5 {[%clk 0:00:19]} 29. Kf2 {[%clk 0:02:01]}  Kf7 {[%clk 0:00:19]} 30. Ke3 {[%clk 0:02:01]}  Ke6 {[%clk 0:00:19]} 31. Kd2 {[%clk 0:02:01]}  g5 {[%clk 0:00:15]} 32. Rd8 {[%clk 0:02:01]}  Kf6 {[%clk 0:00:07]} 33. Rb8 {[%clk 0:02:00]}  h5 {[%clk 0:00:06]} 34. Rxb5 {[%clk 0:02:00]}  h4 {[%clk 0:00:06]} 35. Kd3 {[%clk 0:01:58]}  Rc8 {[%clk 0:00:03]} 36. Rb6+ {[%clk 0:01:58]}  Kg7 {[%clk 0:00:03]} 37. gxh4 {[%clk 0:01:56]}  gxh4 {[%clk 0:00:03]} 38. a4 {[%clk 0:01:54]}  Kh7 {[%clk 0:00:03]} 39. Rb7+ {[%clk 0:01:51]}  Kh6 {[%clk 0:00:03]} 40. a5 {[%clk 0:01:47]}  Rg8 {[%clk 0:00:04]} 41. a6 {[%clk 0:01:47]}  Rxg2 {[%clk 0:00:03]} 42. a7 {[%clk 0:01:47]}  Ra2 {[%clk 0:00:04]} 43. b5 {[%clk 0:01:46]}  h3 {[%clk 0:00:05]} 44. b6 {[%clk 0:01:45]}  h2 {[%clk 0:00:05]} 45. Rb8 {[%clk 0:01:45]}  Kh7 {[%clk 0:00:04]} 46. b7 {[%clk 0:01:29]}  h1=Q {[%clk 0:00:03]} 47. Rh8+ {[%clk 0:01:29]}  Kg6 {[%clk 0:00:02]} 48. Rxh1 {[%clk 0:01:27]}  Rxa7 {[%clk 0:00:02]} 49. b8=Q {[%clk 0:01:27]} 1-0

[Event "January 9 Early 2024"]
[Site "https://www.chess.com"]
[Date "2024.01.11"]
[Round "10"]
[White "Buchenau, Frank"]
[Black "Ljukin, Sergei"]
[Result "1-0"]
[Board "71"]
[TimeControl "180+1"]
[WhiteFideId "4604350"]
[BlackFideId "14102200"]
[WhiteElo "2403"]
[BlackElo "2495"]
[WhiteTeam "GER"]
[BlackTeam "UKR"]
[WhiteClock "0:00:35"]
[BlackClock "0:00:04"]

1. e4 {[%clk 0:03:00]}  e6 {[%clk 0:03:00]} 2. d4 {[%clk 0:03:00]}  d5 {[%clk 0:03:00]} 3. Nc3 {[%clk 0:03:00]}  Bb4 {[%clk 0:03:00]} 4. e5 {[%clk 0:02:50]}  Ne7 {[%clk 0:03:00]} 5. a3 {[%clk 0:02:47]}  Bxc3+ {[%clk 0:03:00]} 6. bxc3 {[%clk 0:02:47]}  c5 {[%clk 0:03:00]} 7. Nf3 {[%clk 0:02:46]}  Bd7 {[%clk 0:03:00]} 8. Bd3 {[%clk 0:02:44]}  c4 {[%clk 0:03:00]} 9. Be2 {[%clk 0:02:44]}  Ba4 {[%clk 0:03:01]} 10. h4 {[%clk 0:02:40]}  Nbc6 {[%clk 0:03:00]} 11. h5 {[%clk 0:02:40]}  h6 {[%clk 0:03:00]} 12. Rb1 {[%clk 0:02:32]}  b6 {[%clk 0:02:56]} 13. Nh4 {[%clk 0:02:31]}  Kd7 {[%clk 0:02:55]} 14. g4 {[%clk 0:02:30]}  Qg8 {[%clk 0:02:55]} 15. f4 {[%clk 0:02:29]}  Qh7 {[%clk 0:02:55]} 16. Rb2 {[%clk 0:02:24]}  g6 {[%clk 0:02:45]} 17. hxg6 {[%clk 0:02:20]}  fxg6 {[%clk 0:02:44]} 18. Bf3 {[%clk 0:02:16]}  Rag8 {[%clk 0:02:15]} 19. Ng2 {[%clk 0:02:15]}  Qf7 {[%clk 0:02:06]} 20. Be3 {[%clk 0:02:12]}  h5 {[%clk 0:01:53]} 21. Kd2 {[%clk 0:01:40]}  hxg4 {[%clk 0:01:48]} 22. Bxg4 {[%clk 0:01:39]}  Nf5 {[%clk 0:01:48]} 23. Bf2 {[%clk 0:01:35]}  g5 {[%clk 0:01:37]} 24. Rxh8 {[%clk 0:01:24]}  Rxh8 {[%clk 0:01:37]} 25. Qf3 {[%clk 0:01:17]}  gxf4 {[%clk 0:01:17]} 26. Qxf4 {[%clk 0:01:15]}  Nce7 {[%clk 0:01:17]} 27. Rb1 {[%clk 0:01:10]}  Qh7 {[%clk 0:01:01]} 28. Rc1 {[%clk 0:01:01]}  Rg8 {[%clk 0:00:49]} 29. Ne3 {[%clk 0:00:55]}  Ng6 {[%clk 0:00:40]} 30. Bxf5 {[%clk 0:00:52]}  Rf8 {[%clk 0:00:18]} 31. Nxd5 {[%clk 0:00:40]}  Rxf5 {[%clk 0:00:15]} 32. Qxf5 {[%clk 0:00:35]}  Qh6+ {[%clk 0:00:04]} 33. Be3 {[%clk 0:00:35]} 1-0

[Event "January 9 Early 2024"]
[Site "https://www.chess.com"]
[Date "2024.01.11"]
[Round "10"]
[White "Coca Cubillos, Jesus Alberto"]
[Black "Gavrilov, Maxim"]
[Result "0-1"]
[Board "72"]
[TimeControl "180+1"]
[WhiteFideId "4462912"]
[BlackFideId "24271454"]
[WhiteElo "2554"]
[BlackElo "2466"]
[WhiteTeam "COL"]
[BlackTeam "RUS"]
[WhiteClock "0:00:57"]
[BlackClock "0:00:23"]

1. f4 {[%clk 0:03:00]}  d5 {[%clk 0:02:58]} 2. Nf3 {[%clk 0:02:59]}  Nf6 {[%clk 0:02:58]} 3. g3 {[%clk 0:02:58]}  c5 {[%clk 0:02:52]} 4. Bg2 {[%clk 0:02:58]}  Nc6 {[%clk 0:02:51]} 5. d3 {[%clk 0:02:59]}  g6 {[%clk 0:02:51]} 6. O-O {[%clk 0:02:59]}  Bg7 {[%clk 0:02:52]} 7. c3 {[%clk 0:03:00]}  O-O {[%clk 0:02:52]} 8. Qc2 {[%clk 0:03:00]}  Nd7 {[%clk 0:02:45]} 9. e4 {[%clk 0:02:59]}  dxe4 {[%clk 0:02:41]} 10. dxe4 {[%clk 0:03:00]}  b6 {[%clk 0:02:33]} 11. Be3 {[%clk 0:02:57]}  Bb7 {[%clk 0:02:33]} 12. Nbd2 {[%clk 0:02:58]}  Qc7 {[%clk 0:02:33]} 13. e5 {[%clk 0:02:56]}  e6 {[%clk 0:02:27]} 14. Ne4 {[%clk 0:02:55]}  Ne7 {[%clk 0:02:07]} 15. Nd6 {[%clk 0:02:53]}  Nf5 {[%clk 0:02:06]} 16. Nxf5 {[%clk 0:02:48]}  exf5 {[%clk 0:02:04]} 17. Rad1 {[%clk 0:02:48]}  Rfd8 {[%clk 0:02:03]} 18. Ng5 {[%clk 0:02:46]}  Nf8 {[%clk 0:02:01]} 19. Qa4 {[%clk 0:02:38]}  Bxg2 {[%clk 0:01:59]} 20. Kxg2 {[%clk 0:02:37]}  h6 {[%clk 0:01:57]} 21. Nf3 {[%clk 0:02:37]}  Ne6 {[%clk 0:01:57]} 22. Rxd8+ {[%clk 0:02:32]}  Rxd8 {[%clk 0:01:57]} 23. Rd1 {[%clk 0:02:32]}  Rxd1 {[%clk 0:01:48]} 24. Qxd1 {[%clk 0:02:33]}  Bf8 {[%clk 0:01:48]} 25. h3 {[%clk 0:02:28]}  Be7 {[%clk 0:01:49]} 26. Qd2 {[%clk 0:02:28]}  h5 {[%clk 0:01:46]} 27. g4 {[%clk 0:02:24]}  hxg4 {[%clk 0:01:44]} 28. hxg4 {[%clk 0:02:25]}  fxg4 {[%clk 0:01:45]} 29. Nh2 {[%clk 0:02:25]}  Qc6+ {[%clk 0:01:42]} 30. Kg3 {[%clk 0:02:17]}  Qh1 {[%clk 0:01:23]} 31. Kxg4 {[%clk 0:02:02]}  Kg7 {[%clk 0:01:09]} 32. f5 {[%clk 0:01:40]}  Qe4+ {[%clk 0:01:00]} 33. Kh3 {[%clk 0:01:32]}  Qxf5+ {[%clk 0:00:58]} 34. Kg2 {[%clk 0:01:32]}  Qxe5 {[%clk 0:00:57]} 35. Nf3 {[%clk 0:01:31]}  Qe4 {[%clk 0:00:56]} 36. Bh6+ {[%clk 0:01:27]}  Kh7 {[%clk 0:00:55]} 37. Be3 {[%clk 0:01:16]}  Qg4+ {[%clk 0:00:47]} 38. Kf2 {[%clk 0:01:14]}  Bh4+ {[%clk 0:00:41]} 39. Nxh4 {[%clk 0:01:13]}  Qxh4+ {[%clk 0:00:42]} 40. Kf3 {[%clk 0:01:08]}  Qh3+ {[%clk 0:00:39]} 41. Kf2 {[%clk 0:01:05]}  Qh2+ {[%clk 0:00:40]} 42. Kf3 {[%clk 0:01:05]}  Qxd2 {[%clk 0:00:40]} 43. Bxd2 {[%clk 0:01:06]}  f5 {[%clk 0:00:40]} 44. b4 {[%clk 0:01:05]}  g5 {[%clk 0:00:36]} 45. a4 {[%clk 0:01:02]}  Kg6 {[%clk 0:00:35]} 46. a5 {[%clk 0:01:02]}  bxa5 {[%clk 0:00:30]} 47. bxc5 {[%clk 0:00:59]}  Nxc5 {[%clk 0:00:29]} 48. Be3 {[%clk 0:00:59]}  Ne4 {[%clk 0:00:28]} 49. c4 {[%clk 0:00:57]}  a4 {[%clk 0:00:26]} 50. Bxa7 {[%clk 0:00:56]}  a3 {[%clk 0:00:23]} 51. Bd4 {[%clk 0:00:57]}  Nd2+ {[%clk 0:00:23]} 0-1

[Event "January 9 Early 2024"]
[Site "https://www.chess.com"]
[Date "2024.01.11"]
[Round "10"]
[White "Iturrizaga Bonelli, Eduardo"]
[Black "Aronian, Levon"]
[Result "1/2-1/2"]
[Board "73"]
[TimeControl "180+1"]
[WhiteFideId "3901211"]
[BlackFideId "13300474"]
[WhiteElo "3029"]
[BlackElo "3096"]
[WhiteTeam "ESP"]
[BlackTeam "USA"]
[WhiteClock "0:00:05"]
[BlackClock "0:00:55"]

1. c4 {[%clk 0:03:00]}  e5 {[%clk 0:02:59]} 2. g3 {[%clk 0:03:01]}  Nf6 {[%clk 0:02:57]} 3. Bg2 {[%clk 0:03:01]}  d5 {[%clk 0:02:57]} 4. cxd5 {[%clk 0:03:02]}  Nxd5 {[%clk 0:02:58]} 5. Nf3 {[%clk 0:03:02]}  Nc6 {[%clk 0:02:57]} 6. O-O {[%clk 0:03:02]}  Nb6 {[%clk 0:02:57]} 7. b3 {[%clk 0:03:01]}  Be6 {[%clk 0:02:56]} 8. Bb2 {[%clk 0:03:02]}  f6 {[%clk 0:02:56]} 9. Nc3 {[%clk 0:03:02]}  Qd7 {[%clk 0:02:56]} 10. Qc1 {[%clk 0:02:59]}  O-O-O {[%clk 0:02:54]} 11. d4 {[%clk 0:02:17]}  Nxd4 {[%clk 0:02:53]} 12. Nxd4 {[%clk 0:02:17]}  exd4 {[%clk 0:02:53]} 13. Ne4 {[%clk 0:02:17]}  Bh3 {[%clk 0:02:47]} 14. Rd1 {[%clk 0:02:13]}  Bxg2 {[%clk 0:02:46]} 15. Kxg2 {[%clk 0:02:14]}  Qe6 {[%clk 0:02:34]} 16. Qc2 {[%clk 0:01:53]}  Re8 {[%clk 0:02:34]} 17. Rxd4 {[%clk 0:01:41]}  Kb8 {[%clk 0:02:25]} 18. Rad1 {[%clk 0:01:12]}  Be7 {[%clk 0:02:24]} 19. b4 {[%clk 0:01:11]}  Rd8 {[%clk 0:02:15]} 20. Nc5 {[%clk 0:01:11]}  Qc6+ {[%clk 0:02:13]} 21. f3 {[%clk 0:01:06]}  Rxd4 {[%clk 0:02:12]} 22. Bxd4 {[%clk 0:01:04]}  g6 {[%clk 0:01:58]} 23. Na6+ {[%clk 0:00:49]}  Kc8 {[%clk 0:01:58]} 24. Qxc6 {[%clk 0:00:50]}  bxc6 {[%clk 0:01:59]} 25. Bc5 {[%clk 0:00:39]}  Nd5 {[%clk 0:01:50]} 26. e4 {[%clk 0:00:27]}  Bxc5 {[%clk 0:01:25]} 27. exd5 {[%clk 0:00:27]}  Bb6 {[%clk 0:01:26]} 28. dxc6 {[%clk 0:00:27]}  Re8 {[%clk 0:01:26]} 29. Rd2 {[%clk 0:00:20]}  Re6 {[%clk 0:01:26]} 30. b5 {[%clk 0:00:17]}  Re3 {[%clk 0:01:25]} 31. a4 {[%clk 0:00:15]}  Ra3 {[%clk 0:01:24]} 32. Re2 {[%clk 0:00:15]}  Kd8 {[%clk 0:01:24]} 33. Rd2+ {[%clk 0:00:14]}  Kc8 {[%clk 0:01:23]} 34. Rd7 {[%clk 0:00:13]}  Rxa4 {[%clk 0:01:23]} 35. Rxh7 {[%clk 0:00:13]}  Kd8 {[%clk 0:01:22]} 36. Rd7+ {[%clk 0:00:13]}  Kc8 {[%clk 0:01:22]} 37. Rf7 {[%clk 0:00:13]}  Kd8 {[%clk 0:01:21]} 38. Rxf6 {[%clk 0:00:14]}  Ra5 {[%clk 0:01:20]} 39. Rxg6 {[%clk 0:00:11]}  Rxb5 {[%clk 0:01:21]} 40. Rg7 {[%clk 0:00:11]}  Ra5 {[%clk 0:01:14]} 41. Rd7+ {[%clk 0:00:11]}  Kc8 {[%clk 0:01:12]} 42. Nb4 {[%clk 0:00:11]}  Rc5 {[%clk 0:01:12]} 43. Rd5 {[%clk 0:00:08]}  Rc4 {[%clk 0:01:08]} 44. Rb5 {[%clk 0:00:04]}  Bc5 {[%clk 0:00:54]} 45. Na6 {[%clk 0:00:04]}  Bb6 {[%clk 0:00:55]} 46. Nb4 {[%clk 0:00:04]}  Bc5 {[%clk 0:00:55]} 47. Na6 {[%clk 0:00:04]}  Bb6 {[%clk 0:00:55]} 48. Nb4 {[%clk 0:00:05]} 1/2-1/2

[Event "January 9 Early 2024"]
[Site "https://www.chess.com"]
[Date "2024.01.11"]
[Round "10"]
[White "Dyulgerov, Volen"]
[Black "Kornyukov, Alexey"]
[Result "0-1"]
[Board "74"]
[TimeControl "180+1"]
[WhiteFideId "2918978"]
[BlackFideId "4150457"]
[WhiteElo "2360"]
[BlackElo "2269"]
[WhiteTeam "BUL"]
[BlackTeam "RUS"]
[WhiteClock "0:00:01"]
[BlackClock "0:00:17"]

1. e4 {[%clk 0:03:00]}  c5 {[%clk 0:02:59]} 2. Nf3 {[%clk 0:02:52]}  Nc6 {[%clk 0:02:58]} 3. d4 {[%clk 0:02:52]}  cxd4 {[%clk 0:02:54]} 4. c3 {[%clk 0:02:52]}  dxc3 {[%clk 0:02:53]} 5. Bc4 {[%clk 0:02:52]}  cxb2 {[%clk 0:02:52]} 6. Bxb2 {[%clk 0:02:53]}  e6 {[%clk 0:02:52]} 7. O-O {[%clk 0:02:49]}  Nge7 {[%clk 0:02:46]} 8. Nc3 {[%clk 0:02:43]}  d6 {[%clk 0:02:31]} 9. Re1 {[%clk 0:01:49]}  Ng6 {[%clk 0:02:28]} 10. Nd5 {[%clk 0:01:50]}  exd5 {[%clk 0:02:04]} 11. exd5+ {[%clk 0:01:43]}  Nce5 {[%clk 0:01:59]} 12. Nxe5 {[%clk 0:01:30]}  dxe5 {[%clk 0:01:52]} 13. f4 {[%clk 0:01:14]}  Bc5+ {[%clk 0:01:49]} 14. Kh1 {[%clk 0:01:14]}  O-O {[%clk 0:01:41]} 15. fxe5 {[%clk 0:01:13]}  Qh4 {[%clk 0:01:35]} 16. Rc1 {[%clk 0:00:55]}  Bf2 {[%clk 0:01:25]} 17. e6 {[%clk 0:00:05]}  Bg3 {[%clk 0:00:58]} 18. h3 {[%clk 0:00:02]}  Bxe1 {[%clk 0:00:52]} 19. Qxe1 {[%clk 0:00:01]}  Qxe1+ {[%clk 0:00:50]} 20. Rxe1 {[%clk 0:00:02]}  fxe6 {[%clk 0:00:48]} 21. dxe6 {[%clk 0:00:03]}  Ne7 {[%clk 0:00:48]} 22. Ba3 {[%clk 0:00:02]}  Re8 {[%clk 0:00:44]} 23. Rf1 {[%clk 0:00:02]}  Ng6 {[%clk 0:00:39]} 24. e7+ {[%clk 0:00:02]}  Kh8 {[%clk 0:00:34]} 25. Bf7 {[%clk 0:00:01]}  Bxh3 {[%clk 0:00:17]} 0-1

[Event "January 9 Early 2024"]
[Site "https://www.chess.com"]
[Date "2024.01.11"]
[Round "10"]
[White "Bortnyk, Olexandr"]
[Black "Bjerre, Jonas Buhl"]
[Result "1-0"]
[Board "79"]
[TimeControl "180+1"]
[WhiteFideId "14120828"]
[BlackFideId "1444948"]
[WhiteElo "3119"]
[BlackElo "2970"]
[WhiteTeam "UKR"]
[BlackTeam "DEN"]
[WhiteClock "0:00:40"]
[BlackClock "0:00:03"]

1. d4 {[%clk 0:03:00]}  Nf6 {[%clk 0:02:59]} 2. Nc3 {[%clk 0:02:59]}  d5 {[%clk 0:02:59]} 3. Bf4 {[%clk 0:02:58]}  c5 {[%clk 0:02:56]} 4. e4 {[%clk 0:02:58]}  e6 {[%clk 0:02:50]} 5. Nb5 {[%clk 0:02:53]}  Na6 {[%clk 0:02:49]} 6. e5 {[%clk 0:02:42]}  Nd7 {[%clk 0:02:48]} 7. Nf3 {[%clk 0:02:40]}  cxd4 {[%clk 0:02:44]} 8. Nbxd4 {[%clk 0:02:35]}  Be7 {[%clk 0:02:41]} 9. c3 {[%clk 0:02:33]}  Nab8 {[%clk 0:02:36]} 10. Bd3 {[%clk 0:02:32]}  Nc6 {[%clk 0:02:35]} 11. Qe2 {[%clk 0:02:29]}  g5 {[%clk 0:02:30]} 12. Bg3 {[%clk 0:02:25]}  g4 {[%clk 0:02:20]} 13. Nd2 {[%clk 0:02:16]}  h5 {[%clk 0:02:15]} 14. h3 {[%clk 0:02:13]}  h4 {[%clk 0:01:40]} 15. hxg4 {[%clk 0:02:10]}  Qb6 {[%clk 0:01:36]} 16. N2f3 {[%clk 0:01:58]}  Nc5 {[%clk 0:01:29]} 17. Bb5 {[%clk 0:01:42]}  Bd7 {[%clk 0:01:25]} 18. Bxh4 {[%clk 0:01:40]}  Nxd4 {[%clk 0:01:20]} 19. Bxd7+ {[%clk 0:01:37]}  Kxd7 {[%clk 0:01:18]} 20. cxd4 {[%clk 0:01:37]}  Qb4+ {[%clk 0:00:55]} 21. Kf1 {[%clk 0:01:33]}  Bxh4 {[%clk 0:00:39]} 22. a3 {[%clk 0:01:15]}  Qa4 {[%clk 0:00:24]} 23. Rxh4 {[%clk 0:01:06]}  Rxh4 {[%clk 0:00:23]} 24. Nxh4 {[%clk 0:01:07]}  Qxd4 {[%clk 0:00:24]} 25. Rd1 {[%clk 0:01:04]}  Qa4 {[%clk 0:00:19]} 26. Nf3 {[%clk 0:01:01]}  Ke7 {[%clk 0:00:17]} 27. Rd4 {[%clk 0:00:59]}  Qa6 {[%clk 0:00:16]} 28. Qxa6 {[%clk 0:00:56]}  bxa6 {[%clk 0:00:17]} 29. Nd2 {[%clk 0:00:53]}  Rc8 {[%clk 0:00:16]} 30. Ke2 {[%clk 0:00:48]}  Nd7 {[%clk 0:00:16]} 31. f4 {[%clk 0:00:48]}  Rc2 {[%clk 0:00:16]} 32. Rb4 {[%clk 0:00:47]}  Nc5 {[%clk 0:00:15]} 33. Kd1 {[%clk 0:00:47]}  a5 {[%clk 0:00:11]} 34. Rb5 {[%clk 0:00:41]}  a6 {[%clk 0:00:11]} 35. Rb6 {[%clk 0:00:41]}  Nd7 {[%clk 0:00:11]} 36. Rxe6+ {[%clk 0:00:42]}  Kxe6 {[%clk 0:00:09]} 37. Kxc2 {[%clk 0:00:42]}  d4 {[%clk 0:00:08]} 38. Ne4 {[%clk 0:00:40]}  Kd5 {[%clk 0:00:04]} 39. Nf6+ {[%clk 0:00:39]}  Nxf6 {[%clk 0:00:04]} 40. exf6 {[%clk 0:00:40]}  Ke4 {[%clk 0:00:04]} 41. g5 {[%clk 0:00:40]}  Ke3 {[%clk 0:00:03]} 42. Kd1 {[%clk 0:00:40]} 1-0

[Event "January 9 Early 2024"]
[Site "https://www.chess.com"]
[Date "2024.01.11"]
[Round "10"]
[White "Piesik, Piotr"]
[Black "Shohat, Yotam"]
[Result "1-0"]
[Board "80"]
[TimeControl "180+1"]
[WhiteFideId "1136194"]
[BlackFideId "2813955"]
[WhiteElo "2674"]
[BlackElo "2459"]
[WhiteTeam "CZE"]
[BlackTeam "ISR"]
[WhiteClock "0:00:59"]
[BlackClock "0:00:02"]

1. Nf3 {[%clk 0:02:55]}  Nf6 {[%clk 0:02:57]} 2. g3 {[%clk 0:02:56]}  g6 {[%clk 0:02:57]} 3. Bg2 {[%clk 0:02:56]}  Bg7 {[%clk 0:02:58]} 4. O-O {[%clk 0:02:57]}  O-O {[%clk 0:02:58]} 5. d4 {[%clk 0:02:58]}  d6 {[%clk 0:02:48]} 6. Nbd2 {[%clk 0:02:58]}  Nbd7 {[%clk 0:02:49]} 7. e4 {[%clk 0:02:58]}  e5 {[%clk 0:02:49]} 8. dxe5 {[%clk 0:02:59]}  Nxe5 {[%clk 0:02:41]} 9. Nxe5 {[%clk 0:02:59]}  dxe5 {[%clk 0:02:42]} 10. Qe2 {[%clk 0:02:59]}  Bg4 {[%clk 0:02:39]} 11. f3 {[%clk 0:02:59]}  Be6 {[%clk 0:02:39]} 12. Nb3 {[%clk 0:02:59]}  b6 {[%clk 0:02:35]} 13. Be3 {[%clk 0:02:59]}  Nd7 {[%clk 0:02:28]} 14. Rfd1 {[%clk 0:02:58]}  Qe7 {[%clk 0:02:25]} 15. Nd2 {[%clk 0:02:57]}  Rfd8 {[%clk 0:02:13]} 16. Qb5 {[%clk 0:02:56]}  Bf8 {[%clk 0:02:06]} 17. Nb3 {[%clk 0:02:51]}  a6 {[%clk 0:01:56]} 18. Qc6 {[%clk 0:02:49]}  Rac8 {[%clk 0:01:49]} 19. Bf1 {[%clk 0:02:48]}  Nb8 {[%clk 0:01:41]} 20. Qb7 {[%clk 0:02:47]}  a5 {[%clk 0:01:28]} 21. a4 {[%clk 0:02:35]}  Rxd1 {[%clk 0:01:24]} 22. Rxd1 {[%clk 0:02:35]}  Rd8 {[%clk 0:01:25]} 23. Rxd8 {[%clk 0:02:28]}  Qxd8 {[%clk 0:01:25]} 24. Nd2 {[%clk 0:02:28]}  Nd7 {[%clk 0:01:19]} 25. Bb5 {[%clk 0:02:18]}  Bc5 {[%clk 0:00:56]} 26. Nf1 {[%clk 0:02:15]}  Bxe3+ {[%clk 0:00:51]} 27. Nxe3 {[%clk 0:02:16]}  Nc5 {[%clk 0:00:52]} 28. Qc6 {[%clk 0:02:15]}  Qd4 {[%clk 0:00:48]} 29. Kf2 {[%clk 0:02:11]}  Qxb2 {[%clk 0:00:28]} 30. Qxc7 {[%clk 0:02:05]}  Qd4 {[%clk 0:00:20]} 31. Ke2 {[%clk 0:02:00]}  Qc3 {[%clk 0:00:18]} 32. Qxb6 {[%clk 0:01:56]}  Qb4 {[%clk 0:00:07]} 33. Qd8+ {[%clk 0:01:52]}  Kg7 {[%clk 0:00:07]} 34. Qd2 {[%clk 0:01:53]}  Qb1 {[%clk 0:00:05]} 35. Qxa5 {[%clk 0:01:52]}  Qg1 {[%clk 0:00:05]} 36. Qc3 {[%clk 0:01:47]}  Qxh2+ {[%clk 0:00:04]} 37. Kf1 {[%clk 0:01:38]}  Qh1+ {[%clk 0:00:04]} 38. Kf2 {[%clk 0:01:39]}  Qh2+ {[%clk 0:00:04]} 39. Ng2 {[%clk 0:01:39]}  Bh3 {[%clk 0:00:03]} 40. Qxe5+ {[%clk 0:01:34]}  Kg8 {[%clk 0:00:03]} 41. Bf1 {[%clk 0:01:32]}  Ne6 {[%clk 0:00:03]} 42. a5 {[%clk 0:01:28]}  Qh1 {[%clk 0:00:01]} 43. a6 {[%clk 0:01:26]}  Bxg2 {[%clk 0:00:02]} 44. Bxg2 {[%clk 0:01:27]}  Qc1 {[%clk 0:00:02]} 45. Qc3 {[%clk 0:01:23]}  Qd1 {[%clk 0:00:01]} 46. a7 {[%clk 0:01:09]}  Qd8 {[%clk 0:00:01]} 47. Qb4 {[%clk 0:01:05]}  Kg7 {[%clk 0:00:02]} 48. f4 {[%clk 0:00:59]} 1-0